fUSD/lending_fUSD_20250627
["ID","MTS","AMOUNT","RATE_DAILY","PERIOD"]
[367984106,1750983052709,-490.0,0.00024592,2]
[367984108,1750983052718,-490.0,0.00024592,2]
[367984109,1750983052727,-490.0,0.00024592,2]
[367984111,1750983052737,-580.76,0.00024592,2]
[367984113,1750983052746,-490.0,0.00024592,2]
[367984115,1750983052756,-490.0,0.00024592,2]
[367984116,1750983052765,-692.69,0.00024592,2]
[367984118,1750983052775,-470.36894502,0.00024592,2]
[367984120,1750983052785,-490.0,0.00024592,2]
[367984122,1750983052795,-227.117832,0.00024592,2]
[367984124,1750983052804,-490.0,0.00024592,2]
[367984126,1750983052813,-11544.45,0.00024592,2]
[367984128,1750983052822,-324.36348953,0.00024592,2]
[367984130,1750983052831,-490.0,0.00024592,2]
[367984132,1750983052841,-490.0,0.00024592,2]
[367984134,1750983052850,-490.0,0.00024592,2]
[367984136,1750983052860,-936.17,0.00024592,2]
[367984138,1750983052869,-490.0,0.00024592,2]
[367984140,1750983052878,-490.0,0.00024592,2]
[367984142,1750983052888,-1600.01,0.00024592,2]
[367984144,1750983052897,-490.0,0.00024592,2]
[367984146,1750983052907,-490.0,0.00024592,2]
[367984148,1750983052916,-922.08,0.00024592,2]
[367984150,1750983052926,-490.0,0.00024592,2]
[367984152,1750983052935,-516.97,0.00024592,2]
[367984153,1750983052945,-777.97,0.00024592,2]
[367984156,1750983052955,-3644.9,0.00024592,2]
[367984157,1750983052965,-1905.92,0.00024592,2]
[367984160,1750983052975,-490.0,0.00024592,2]
[367984162,1750983052984,-1049.33,0.00024592,2]
[367984163,1750983052996,-490.0,0.00024592,2]
[367984165,1750983053005,-490.0,0.00024592,2]
[367984167,1750983053015,-490.0,0.00024592,2]
[367984169,1750983053025,-1442.18,0.00024592,2]
[367984171,1750983053034,-490.0,0.00024592,2]
[367984173,1750983053044,-490.0,0.00024592,2]
[367984175,1750983053053,-490.0,0.00024592,2]
[367984177,1750983053062,-891.5,0.00024592,2]
[367984179,1750983053072,-490.0,0.00024592,2]
[367984181,1750983053081,-1458.83,0.00024592,2]
[367984182,1750983053091,-490.0,0.00024592,2]
[367984183,1750983053100,-714.4,0.00024592,2]
[367984184,1750983053109,-490.0,0.00024592,2]
[367984185,1750983053118,-490.0,0.00024592,2]
[367984186,1750983053127,-284.81258243,0.00024592,2]
[367984187,1750983053136,-696.45,0.00024592,2]
[367984188,1750983053145,-490.0,0.00024592,2]
[367984189,1750983053154,-1011.76,0.00024592,2]
[367984190,1750983053163,-490.0,0.00024592,2]
[367984191,1750983053172,-490.0,0.00024592,2]
[367984192,1750983053182,-490.0,0.00024592,2]
[367984193,1750983053191,-490.0,0.00024593,2]
[367984194,1750983053201,-655.3,0.00024593,2]
[367984195,1750983053215,-755.44,0.00024593,2]
[367984196,1750983053224,-490.0,0.00024593,2]
[367984197,1750983053233,-490.0,0.00024593,2]
[367984198,1750983053242,-490.0,0.00024593,2]
[367984199,1750983053251,-490.0,0.00024593,2]
[367984200,1750983053260,-490.0,0.00024593,2]
[367984201,1750983053269,-490.0,0.00024593,2]
[367984202,1750983053278,-490.0,0.00024593,2]
[367984203,1750983053288,-490.0,0.00024593,2]
[367984204,1750983053298,-490.0,0.00024593,2]
[367984205,1750983053306,-558.22,0.00024593,2]
[367984206,1750983053316,-912.33,0.00024593,2]
[367984207,1750983053325,-490.0,0.00024593,2]
[367984209,1750983053335,-545.28,0.00024593,2]
[367984210,1750983053344,-490.0,0.00024593,2]
[367984212,1750983053353,-490.0,0.00024593,2]
[367984214,1750983053362,-490.0,0.00024593,2]
[367984216,1750983053371,-490.0,0.00024593,2]
[367984218,1750983053380,-490.0,0.00024593,2]
[367984220,1750983053390,-490.0,0.00024593,2]
[367984222,1750983053399,-490.0,0.00024593,2]
[367984224,1750983053409,-490.0,0.00024593,2]
[367984226,1750983053420,-614.09,0.00024593,2]
[367984228,1750983053430,-490.0,0.00024593,2]
[367984230,1750983053440,-723.4,0.00024593,2]
[367984232,1750983053449,-563.91,0.00024593,2]
[367984234,1750983053459,-508.89,0.00024593,2]
[367984236,1750983053468,-599.63,0.00024593,2]
[367984238,1750983053478,-602.95,0.00024593,2]
[367984240,1750983053487,-490.0,0.00024593,2]
[367984242,1750983053496,-492.89,0.00024593,2]
[367984244,1750983053505,-592.63,0.00024593,2]
[367984246,1750983053515,-490.0,0.00024593,2]
[367984248,1750983053524,-490.0,0.00024593,2]
[367984250,1750983053533,-490.0,0.00024593,2]
[367984252,1750983053542,-490.0,0.00024593,2]
[367984254,1750983053552,-510.1,0.00024593,2]
[367984256,1750983053561,-454.21,0.00024593,2]
[367984258,1750983053571,-538.56,0.00024593,2]
[367984260,1750983053581,-490.0,0.00024593,2]
[367984262,1750983053590,-490.0,0.00024593,2]
[367984264,1750983053600,-1839.3,0.00024593,2]
[367984266,1750983053610,-490.0,0.00024593,2]
[367984268,1750983053619,-490.0,0.00024593,2]
[367984270,1750983053629,-658.85,0.00024593,2]
[367984272,1750983053638,-500.45,0.00024593,2]
[367984274,1750983053648,-490.0,0.00024593,2]
[367984276,1750983053658,-490.0,0.00024593,2]
[367984278,1750983053667,-3573.71,0.00024593,2]
[367984280,1750983053676,-490.0,0.00024593,2]
[367984282,1750983053687,-9728.1,0.00024593,2]
[367984284,1750983053698,-490.0,0.00024593,2]
[367984286,1750983053708,-490.0,0.00024593,2]
[367984288,1750983053717,-490.0,0.00024593,2]
[367984290,1750983053727,-3818.81,0.00024593,2]
[367984292,1750983053736,-1249.39,0.00024593,2]
[367984294,1750983053746,-516.531404,0.00024593,2]
[367984296,1750983053755,-618.12,0.00024593,2]
[367984298,1750983053765,-490.0,0.00024593,2]
[367984300,1750983053774,-877.87,0.00024593,2]
[367984302,1750983053784,-681.94,0.00024593,2]
[367984304,1750983053794,-1926.64,0.00024593,2]
[367984306,1750983053803,-490.0,0.00024593,2]
[367984308,1750983053813,-590.96,0.00024593,2]
[367984310,1750983053823,-812.27,0.00024593,2]
[367984312,1750983053832,-514.438071,0.00024593,2]
[367984314,1750983053842,-490.0,0.00024593,2]
[367984316,1750983053852,-1649.940435,0.00024593,2]
[367984318,1750983053863,-490.0,0.00024593,2]
[367984320,1750983053873,-1038.35,0.00024593,2]
[367984322,1750983053883,-987.98,0.00024593,2]
[367984324,1750983053894,-531.81,0.00024593,2]
[367984327,1750983053904,-490.0,0.00024593,2]
[367984329,1750983053914,-792.86,0.00024593,2]
[367984331,1750983053923,-875.56,0.00024593,2]
[367984333,1750983053933,-607.08,0.00024593,2]
[367984335,1750983053943,-490.0,0.00024593,2]
[367984337,1750983053953,-645.24,0.00024593,2]
[367984339,1750983053963,-498.0,0.00024593,2]
[367984341,1750983053973,-490.0,0.00024593,2]
[367984343,1750983053982,-1225.65,0.00024593,2]
[367984345,1750983053992,-490.0,0.00024593,2]
[367984347,1750983054002,-817.92,0.00024593,2]
[367984349,1750983054012,-762.89,0.00024593,2]
[367984351,1750983054021,-1014.6,0.00024593,2]
[367984353,1750983054031,-7624.91,0.00024593,2]
[367984355,1750983054041,-558.71,0.00024593,2]
[367984357,1750983054050,-3752.1,0.00024593,2]
[367984359,1750983054060,-1248.12,0.00024593,2]
[367984361,1750983054070,-490.0,0.00024593,2]
[367984363,1750983054080,-3735.08,0.00024593,2]
[367984365,1750983054090,-490.0,0.00024593,2]
[367984367,1750983054099,-490.0,0.00024593,2]
[367984369,1750983054109,-490.0,0.00024593,2]
[367984371,1750983054120,-490.0,0.00024593,2]
[367984373,1750983054130,-490.0,0.00024593,2]
[367984376,1750983054141,-551.25,0.00024593,2]
[367984378,1750983054151,-629.33,0.00024593,2]
[367984380,1750983054160,-723.84,0.00024593,2]
[367984382,1750983054170,-901.22,0.00024593,2]
[367984384,1750983054181,-490.0,0.00024593,2]
[367984386,1750983054190,-635.97,0.00024593,2]
[367984388,1750983054201,-608.98,0.00024593,2]
[367984390,1750983054214,-490.0,0.00024593,2]
[367984392,1750983054223,-1312.13,0.00024593,2]
[367984394,1750983054233,-601.85,0.00024593,2]
[367984396,1750983054243,-6398.13,0.00024593,2]
[367984398,1750983054252,-1036.78,0.00024593,2]
[367984400,1750983054262,-715.56,0.00024593,2]
[367984402,1750983054272,-490.0,0.00024593,2]
[367984404,1750983054282,-490.0,0.00024593,2]
[367984406,1750983054292,-626.9,0.00024593,2]
[367984408,1750983054302,-490.0,0.00024593,2]
[367984410,1750983054312,-570.92,0.00024593,2]
[367984412,1750983054322,-2035.01,0.00024593,2]
[367984413,1750983054332,-623.74,0.00024593,2]
[367984415,1750983054341,-749.56,0.00024593,2]
[367984417,1750983054351,-490.0,0.00024593,2]
[367984419,1750983054360,-737.2,0.00024593,2]
[367984421,1750983054370,-490.0,0.00024593,2]
[367984422,1750983054380,-808.31,0.00024593,2]
[367984423,1750983054390,-490.0,0.00024593,2]
[367984424,1750983054400,-1112.93,0.00024593,2]
[367984425,1750983054409,-975.73,0.00024593,2]
[367984426,1750983054422,-1652.36,0.00024593,2]
[367984427,1750983054433,-490.0,0.00024593,2]
[367984428,1750983054442,-490.0,0.00024593,2]
[367984429,1750983054452,-2522.61,0.00024593,2]
[367984430,1750983054462,-614.71,0.00024593,2]
[367984431,1750983054471,-490.0,0.00024593,2]
[367984432,1750983054481,-490.0,0.00024593,2]
[367984433,1750983054490,-713.61,0.00024593,2]
[367984434,1750983054501,-490.0,0.00024593,2]
[367984435,1750983054511,-949.92,0.00024593,2]
[367984436,1750983054521,-629.22,0.00024593,2]
[367984437,1750983054530,-490.0,0.00024593,2]
[367984438,1750983054541,-1181.71,0.00024593,2]
[367984439,1750983054551,-496.45,0.00024593,2]
[367984440,1750983054561,-490.0,0.00024593,2]
[367984441,1750983054571,-2048.33,0.00024593,2]
[367984442,1750983054580,-3138.94,0.00024593,2]
[367984443,1750983054590,-959.89,0.00024593,2]
[367984444,1750983054600,-960.2,0.00024593,2]
[367984445,1750983054611,-490.0,0.00024593,2]
[367984446,1750983054620,-2189.82,0.00024593,2]
[367984447,1750983054630,-3555.66,0.00024593,2]
[367984448,1750983054639,-464.06136901,0.00024593,2]
[367984449,1750983054649,-490.0,0.00024593,2]
[367984450,1750983054659,-917.17,0.00024593,2]
[367984451,1750983054669,-48840.7,0.00024593,2]
[367984452,1750983054678,-2937.92,0.00024593,2]
[367984453,1750983054688,-490.0,0.00024593,2]
[367984454,1750983054697,-490.0,0.00024593,2]
[367984455,1750983054707,-490.0,0.00024593,2]
[367984456,1750983054718,-871.52,0.00024593,2]
[367984457,1750983054728,-490.0,0.00024593,2]
[367984458,1750983054738,-490.0,0.00024593,2]
[367984459,1750983054748,-490.0,0.00024593,2]
[367984460,1750983054759,-490.0,0.00024593,2]
[367984461,1750983054769,-1000.0,0.00024613,2]
[367984462,1750983054778,-12134.78,0.0002463,2]
[367984463,1750983054789,-490.0,0.00024652,2]
[367984464,1750983054799,-500.0,0.00024652,2]
[367984465,1750983054809,-490.0,0.00024652,2]
[367984466,1750983054818,-490.0,0.00024652,2]
[367984467,1750983054828,-490.0,0.00024652,2]
[367984468,1750983054837,-490.0,0.00024652,2]
[367984469,1750983054847,-490.0,0.00024652,2]
[367984470,1750983054857,-490.0,0.00024652,2]
[367984471,1750983054868,-490.0,0.00024652,2]
[367984472,1750983054878,-640.04,0.00024652,2]
[367984473,1750983054888,-490.0,0.00024652,2]
[367984474,1750983054897,-490.0,0.00024652,2]
[367984475,1750983054907,-490.0,0.00024652,2]
[367984476,1750983054917,-490.0,0.00024652,2]
[367984477,1750983054928,-490.0,0.00024652,2]
[367984478,1750983054939,-569.98,0.00024652,2]
[367984479,1750983054952,-490.0,0.00024652,2]
[367984480,1750983054962,-490.0,0.00024652,2]
[367984481,1750983054972,-490.0,0.00024652,2]
[367984482,1750983054982,-490.0,0.00024652,2]
[367984483,1750983054992,-490.0,0.00024652,2]
[367984484,1750983055001,-490.0,0.00024652,2]
[367984485,1750983055012,-490.0,0.00024652,2]
[367984486,1750983055022,-490.0,0.00024652,2]
[367984487,1750983055032,-490.0,0.00024652,2]
[367984488,1750983055042,-490.0,0.00024652,2]
[367984489,1750983055052,-490.0,0.00024652,2]
[367984490,1750983055062,-490.0,0.00024652,2]
[367984491,1750983055071,-490.0,0.00024652,2]
[367984492,1750983055081,-490.0,0.00024652,2]
[367984493,1750983055091,-490.0,0.00024652,2]
[367984494,1750983055101,-490.0,0.00024652,2]
[367984495,1750983055111,-490.0,0.00024652,2]
[367984496,1750983055121,-490.0,0.00024652,2]
[367984497,1750983055131,-490.0,0.00024652,2]
[367984498,1750983055141,-490.0,0.00024652,2]
[367984499,1750983055151,-490.0,0.00024652,2]
[367984500,1750983055160,-490.0,0.00024652,2]
[367984501,1750983055170,-490.0,0.00024652,2]
[367984502,1750983055181,-490.0,0.00024652,2]
[367984503,1750983055190,-490.0,0.00024652,2]
[367984504,1750983055200,-490.0,0.00024652,2]
[367984505,1750983055215,-490.0,0.00024652,2]
[367984506,1750983055225,-490.0,0.00024652,2]
[367984507,1750983055235,-490.0,0.00024652,2]
[367984508,1750983055247,-490.0,0.00024652,2]
[367984509,1750983055258,-490.0,0.00024652,2]
[367984510,1750983055269,-493.48430566,0.00024652,2]
[367984511,1750983055279,-490.0,0.00024652,2]
[367984512,1750983055291,-490.0,0.00024652,2]
[367984513,1750983055302,-490.0,0.00024652,2]
[367984514,1750983055312,-490.0,0.00024652,2]
[367984515,1750983055323,-258.31152534,0.00024652,2]
[367984516,1750983055332,-490.0,0.00024652,2]
[367984517,1750983055342,-490.0,0.00024652,2]
[367984518,1750983055354,-490.0,0.00024652,2]
[367984519,1750983055364,-490.0,0.00024652,2]
[367984520,1750983055375,-490.0,0.00024652,2]
[367984521,1750983055385,-490.0,0.00024652,2]
[367984522,1750983055395,-490.0,0.00024652,2]
[367984523,1750983055406,-490.0,0.00024652,2]
[367984524,1750983055416,-495.99083793,0.00024652,2]
[367984525,1750983055426,-490.0,0.00024652,2]
[367984526,1750983055436,-490.0,0.00024652,2]
[367984527,1750983055446,-625.77719467,0.00024652,2]
[367984528,1750983055456,-490.0,0.00024652,2]
[367984529,1750983055466,-490.0,0.00024652,2]
[367984530,1750983055476,-490.0,0.00024652,2]
[367984531,1750983055487,-490.0,0.00024652,2]
[367984532,1750983055497,-490.0,0.00024652,2]
[367984533,1750983055507,-213.85516059,0.00024652,2]
[367984534,1750983055517,-490.0,0.00024652,2]
[367984535,1750983055526,-552.59179987,0.00024652,2]
[367984536,1750983055537,-490.0,0.00024652,2]
[367984537,1750983055547,-490.0,0.00024652,2]
[367984538,1750983055556,-490.0,0.00024652,2]
[367984539,1750983055566,-490.0,0.00024652,2]
[367984540,1750983055576,-490.0,0.00024652,2]
[367984541,1750983055586,-210.0,0.00024652,2]
[367984542,1750983055596,-490.0,0.00024652,2]
[367984543,1750983055605,-490.0,0.00024652,2]
[367984544,1750983055616,-490.0,0.00024652,2]
[367984545,1750983055625,-500.0,0.00024652,2]
[367984546,1750983055635,-300.0,0.00024652,2]
[367984547,1750983055645,-490.0,0.00024652,2]
[367984548,1750983055655,-490.0,0.00024652,2]
[367984549,1750983055666,-490.0,0.00024652,2]
[367984550,1750983055675,-490.0,0.00024652,2]
[367984551,1750983055687,-450.0,0.00024652,2]
[367984552,1750983055697,-621.04536594,0.00024652,2]
[367984553,1750983055707,-490.0,0.00024652,2]
[367984554,1750983055718,-490.0,0.00024652,2]
[367984555,1750983055728,-490.0,0.00024652,2]
[367984556,1750983055737,-490.0,0.00024652,2]
[367984557,1750983055747,-490.0,0.00024652,2]
[367984558,1750983055758,-490.0,0.00024652,2]
[367984559,1750983055948,-490.0,0.00024652,2]
[367984560,1750983055958,-490.0,0.00024652,2]
[367984561,1750983055968,-490.0,0.00024652,2]
[367984562,1750983055977,-490.0,0.00024652,2]
[367984563,1750983055985,-490.0,0.00024652,2]
[367984564,1750983055994,-490.0,0.00024652,2]
[367984565,1750983056004,-490.0,0.00024652,2]
[367984566,1750983056012,-490.0,0.00024652,2]
[367984567,1750983056021,-490.0,0.00024652,2]
[367984568,1750983056030,-490.0,0.00024652,2]
[367984569,1750983056039,-490.0,0.00024652,2]
[367984570,1750983056049,-621.44,0.00024652,2]
[367984571,1750983056058,-500.0,0.00024652,2]
[367984572,1750983056067,-490.0,0.00024652,2]
[367984573,1750983056076,-490.0,0.00024652,2]
[367984574,1750983056086,-490.0,0.00024652,2]
[367984575,1750983056096,-490.0,0.00024652,2]
[367984576,1750983056105,-490.0,0.00024652,2]
[367984577,1750983056115,-490.0,0.00024652,2]
[367984578,1750983056124,-490.0,0.00024652,2]
[367984579,1750983056134,-490.0,0.00024652,2]
[367984580,1750983056143,-490.0,0.00024652,2]
[367984581,1750983056152,-490.0,0.00024652,2]
[367984582,1750983056162,-490.0,0.00024652,2]
[367984583,1750983056172,-490.0,0.00024652,2]
[367984584,1750983056182,-610.8,0.00024652,2]
[367984585,1750983056192,-495.06452549,0.00024652,2]
[367984586,1750983056204,-490.0,0.00024652,2]
[367984587,1750983056215,-210.0,0.00024652,2]
[367984588,1750983056224,-490.0,0.00024652,2]
[367984589,1750983056234,-490.0,0.00024652,2]
[367984590,1750983056243,-490.0,0.00024652,2]
[367984591,1750983056252,-490.0,0.00024652,2]
[367984592,1750983056261,-490.0,0.00024652,2]
[367984593,1750983056271,-490.0,0.00024652,2]
[367984594,1750983056280,-490.0,0.00024652,2]
[367984595,1750983056289,-490.0,0.00024652,2]
[367984596,1750983056299,-490.0,0.00024652,2]
[367984597,1750983056309,-490.0,0.00024652,2]
[367984598,1750983056319,-577.20616632,0.00024652,2]
[367984599,1750983056329,-210.0,0.00024652,2]
[367984600,1750983056338,-210.0,0.00024652,2]
[367984601,1750983056347,-490.0,0.00024652,2]
[367984602,1750983056357,-490.0,0.00024652,2]
[367984603,1750983056366,-490.0,0.00024652,2]
[367984604,1750983056376,-490.0,0.00024652,2]
[367984605,1750983056385,-490.0,0.00024652,2]
[367984606,1750983056395,-490.0,0.00024652,2]
[367984607,1750983056404,-213.2088838,0.00024652,2]
[367984608,1750983056414,-490.0,0.00024652,2]
[367984609,1750983056423,-490.0,0.00024652,2]
[367984610,1750983056433,-490.0,0.00024652,2]
[367984611,1750983056442,-490.0,0.00024652,2]
[367984612,1750983056452,-331.75219057,0.00024652,2]
[367984613,1750983056461,-490.0,0.00024652,2]
[367984614,1750983056471,-490.0,0.00024652,2]
[367984615,1750983056480,-490.0,0.00024652,2]
[367984616,1750983056489,-490.0,0.00024652,2]
[367984617,1750983056499,-490.0,0.00024652,2]
[367984618,1750983056508,-490.0,0.00024652,2]
[367984619,1750983056517,-490.0,0.00024652,2]
[367984620,1750983056527,-490.0,0.00024652,2]
[367984621,1750983056536,-490.0,0.00024652,2]
[367984622,1750983056545,-490.0,0.00024652,2]
[367984623,1750983056554,-490.0,0.00024652,2]
[367984624,1750983056563,-490.0,0.00024652,2]
[367984625,1750983056572,-490.0,0.00024652,2]
[367984626,1750983056581,-490.0,0.00024652,2]
[367984627,1750983056591,-490.0,0.00024652,2]
[367984628,1750983056600,-490.0,0.00024652,2]
[367984629,1750983056609,-490.0,0.00024652,2]
[367984630,1750983056618,-490.0,0.00024652,2]
[367984631,1750983056628,-490.0,0.00024652,2]
[367984632,1750983056637,-490.0,0.00024652,2]
[367984633,1750983056646,-490.0,0.00024652,2]
[367984634,1750983056655,-490.0,0.00024652,2]
[367984635,1750983056665,-637.60251163,0.00024652,2]
[367984636,1750983056674,-490.0,0.00024652,2]
[367984637,1750983056685,-490.0,0.00024652,2]
[367984638,1750983056694,-630.0,0.00024652,2]
[367984639,1750983056704,-490.0,0.00024652,2]
[367984640,1750983056714,-630.0,0.00024652,2]
[367984641,1750983056724,-490.0,0.00024652,2]
[367984642,1750983056734,-490.0,0.00024652,2]
[367984643,1750983056744,-490.0,0.00024652,2]
[367984644,1750983056754,-492.32800435,0.00024652,2]
[367984645,1750983056764,-435.06,0.00024653,2]
[367984646,1750983056773,-490.0,0.00024653,2]
[367984647,1750983056783,-566.81012832,0.00024653,2]
[367984648,1750983056792,-500.0,0.00024653,2]
[367984649,1750983056801,-490.0,0.00024653,2]
[367984650,1750983056811,-490.0,0.00024653,2]
[367984651,1750983056821,-490.0,0.00024653,2]
[367984652,1750983056830,-571.97,0.00024653,2]
[367984653,1750983056840,-1516.87,0.00024653,2]
[367984654,1750983056850,-500.0,0.00024653,2]
[367984655,1750983056860,-559.39060073,0.00024653,2]
[367984656,1750983056872,-1399.96,0.00024653,2]
[367984657,1750983056883,-2533.14,0.00024653,2]
[367984658,1750983056894,-1353.86,0.00024653,2]
[367984659,1750983056904,-982.69,0.00024653,2]
[367984660,1750983056915,-569.4,0.00024653,2]
[367984661,1750983056923,-1851.47,0.00024653,2]
[367984662,1750983056934,-1181.75,0.00024653,2]
[367984663,1750983056943,-814.14,0.00024653,2]
[367984664,1750983056953,-730.63,0.00024653,2]
[367984665,1750983056962,-490.0,0.00024654,2]
[367984666,1750983056972,-490.0,0.00024654,2]
[367984667,1750983056981,-210.0,0.00024654,2]
[367984668,1750983056991,-280.0,0.00024654,2]
[367984669,1750983057000,-490.0,0.00024654,2]
[367984670,1750983057009,-490.0,0.00024654,2]
[367984671,1750983057019,-490.0,0.00024654,2]
[367984672,1750983057028,-527.02,0.00024654,2]
[367984673,1750983057038,-490.0,0.00024654,2]
[367984674,1750983057050,-621.28,0.00024654,2]
[367984675,1750983057059,-490.0,0.00024654,2]
[367984676,1750983057068,-1014.99,0.00024654,2]
[367984677,1750983057077,-490.0,0.00024654,2]
[367984678,1750983057086,-490.0,0.00024654,2]
[367984679,1750983057095,-490.0,0.00024654,2]
[367984680,1750983057105,-490.0,0.00024654,2]
[367984681,1750983057114,-490.0,0.00024654,2]
[367984682,1750983057124,-490.0,0.00024654,2]
[367984683,1750983057133,-734.93,0.00024654,2]
[367984684,1750983057142,-636.01,0.00024654,2]
[367984685,1750983057151,-960.31,0.00024654,2]
[367984686,1750983057161,-490.0,0.00024654,2]
[367984687,1750983057171,-490.0,0.00024654,2]
[367984688,1750983057182,-490.0,0.00024654,2]
[367984689,1750983057192,-490.0,0.00024654,2]
[367984690,1750983057202,-490.0,0.00024654,2]
[367984691,1750983057214,-490.0,0.00024654,2]
[367984692,1750983057223,-490.0,0.00024654,2]
[367984693,1750983057232,-576.03,0.00024654,2]
[367984694,1750983057241,-500.0,0.00024654,2]
[367984695,1750983057253,-554.82,0.00024654,2]
[367984696,1750983057262,-490.0,0.00024654,2]
[367984697,1750983057272,-490.0,0.00024654,2]
[367984698,1750983057282,-1162.0,0.00024657,2]
[367984699,1750983057291,-7139.0,0.00024657,2]
[367984700,1750983057300,-856.0,0.00024657,2]
[367984701,1750983057309,-4100.0,0.00024657,2]
[367984702,1750983057319,-156.0,0.00024657,2]
[367984703,1750983057328,-500.0,0.00024657,2]
[367984704,1750983057337,-150.0,0.00024657,2]
[367984705,1750983057347,-166.05883587,0.00024657,2]
[367984706,1750983057356,-500.0,0.00024657,2]
[367984707,1750983057365,-150.0,0.00024657,2]
[367984708,1750983057374,-150.0,0.00024657,2]
[367984709,1750983057383,-500.0,0.00024657,2]
[367984710,1750983057393,-500.0,0.00024657,2]
[367984711,1750983057401,-150.0,0.00024657,2]
[367984712,1750983057410,-150.0,0.00024657,2]
[367984713,1750983057419,-150.0,0.00024657,2]
[367984714,1750983057428,-185.23268864,0.00024657,2]
[367984715,1750983057438,-150.0,0.00024657,2]
[367984716,1750983057448,-150.0,0.00024657,2]
[367984717,1750983057457,-150.0,0.00024657,2]
[367984718,1750983057467,-150.0,0.00024657,2]
[367984719,1750983057476,-150.0,0.00024657,2]
[367984720,1750983057486,-150.0,0.00024657,2]
[367984721,1750983057495,-500.0,0.00024657,2]
[367984722,1750983057504,-150.0,0.00024657,2]
[367984723,1750983057514,-500.0,0.00024657,2]
[367984724,1750983057523,-150.51819388,0.00024657,2]
[367984725,1750983057533,-500.0,0.00024657,2]
[367984726,1750983057542,-150.0,0.00024657,2]
[367984727,1750983057551,-2002.0,0.00024657,2]
[367984728,1750983057560,-150.0,0.00024657,2]
[367984729,1750983057570,-150.0,0.00024657,2]
[367984730,1750983057579,-150.0,0.00024657,2]
[367984731,1750983057588,-150.0,0.00024657,2]
[367984732,1750983057598,-150.0,0.00024657,2]
[367984733,1750983057608,-150.0,0.00024657,2]
[367984734,1750983057617,-150.0,0.00024657,2]
[367984735,1750983057631,-150.0,0.00024657,2]
[367984736,1750983057648,-500.0,0.00024657,2]
[367984737,1750983057660,-150.0,0.00024657,2]
[367984738,1750983057676,-500.0,0.00024657,2]
[367984739,1750983057691,-150.0,0.00024657,2]
[367984740,1750983057707,-488.0,0.00024657,2]
[367984741,1750983057721,-300.0,0.00024657,2]
[367984742,1750983057733,-300.0,0.00024657,2]
[367984743,1750983057748,-300.0,0.00024657,2]
[367984744,1750983057763,-300.0,0.00024657,2]
[367984745,1750983057777,-300.0,0.00024657,2]
[367984746,1750983057792,-1000.0,0.00024658,2]
[367984747,1750983057806,-2310.35524765,0.00024767,2]
[367984748,1750983057820,-168.3888056,0.00024776,2]